fUST/lending_fUST_20251004
["ID","MTS","AMOUNT","RATE_DAILY","PERIOD"]
[388973932,1759552248088,-5420.65,0.00024657,9]
[388973933,1759552248097,-1744.22,0.00024657,9]
[388973934,1759552248106,-500.0,0.00024657,9]
[388973935,1759552248115,-500.0,0.00024657,9]
[388973936,1759552248124,-1257.87,0.00024657,9]
[388973937,1759552248133,-500.0,0.00024657,9]
[388973938,1759552248142,-502.15,0.00024657,9]
[388973939,1759552248151,-500.0,0.00024657,9]
[388973940,1759552248161,-342.14757,0.00024657,7]
[388973941,1759552248170,-500.0,0.00024657,9]
[388973942,1759552248179,-1118.86,0.00024657,9]
[388973943,1759552248188,-1790.35,0.00024657,9]
[388973944,1759552248197,-386.3465436,0.00024657,9]
[388973945,1759552248206,-342.14757,0.00024657,7]
[388973946,1759552248215,-500.0,0.00024657,9]
[388973947,1759552248224,-500.0,0.00024657,9]
[388973948,1759552248233,-342.14757,0.00024657,7]
[388973949,1759552248241,-1102.6,0.00024657,9]
[388973950,1759552248251,-898.11,0.00024657,9]
[388973951,1759552248259,-500.0,0.00024657,9]
[388973952,1759552248268,-342.14757,0.00024657,7]
[388973953,1759552248277,-1701.01,0.00024657,9]
[388973954,1759552248286,-500.0,0.00024657,9]
[388973955,1759552248296,-1174.69,0.00024657,9]
[388973956,1759552248306,-332.73377822,0.00024657,9]
[388973957,1759552248317,-500.0,0.00024657,9]
[388973958,1759552248326,-500.0,0.00024657,9]
[388973959,1759552248336,-500.0,0.00024657,9]
[388973960,1759552248346,-500.0,0.00024657,9]
[388973961,1759552248356,-500.0,0.00024657,9]
[388973962,1759552248366,-500.0,0.00024657,9]
[388973963,1759552248375,-500.0,0.00024657,9]
[388973964,1759552248385,-500.0,0.00024657,9]
[388973965,1759552248394,-500.0,0.00024657,9]
[388973966,1759552248403,-500.0,0.00024657,9]
[388973967,1759552248414,-500.0,0.00024657,9]
[388973968,1759552248423,-500.0,0.00024657,9]
[388973969,1759552248432,-1929.49,0.00024657,9]
[388973970,1759552248441,-1817.64,0.00024657,9]
[388973971,1759552248451,-500.0,0.00024657,9]
[388973972,1759552248464,-1525.75,0.00024657,9]
[388973973,1759552248475,-899.63,0.00024657,9]
[388973974,1759552248485,-500.0,0.00024657,9]
[388973975,1759552248495,-1433.89,0.00024657,9]
[388973976,1759552248504,-500.0,0.00024657,9]
[388973977,1759552248515,-500.0,0.00024657,9]
[388973978,1759552248524,-500.0,0.00024657,9]
[388973979,1759552248534,-525.43,0.00024657,9]
[388973980,1759552248544,-668.78,0.00024657,9]
[388973981,1759552248554,-1900.87,0.00024657,2]
[388973982,1759552248564,-2258.21,0.00024657,9]
[388973983,1759552248577,-3947.36,0.00024657,9]
[388973984,1759552248587,-500.0,0.00024657,9]
[388973985,1759552248596,-500.0,0.00024657,9]
[388973986,1759552248606,-500.0,0.00024657,7]
[388973987,1759552248616,-500.0,0.00024657,9]
[388973988,1759552248626,-618.50616044,0.00024657,9]
[388973989,1759552248636,-500.0,0.00024657,9]
[388973990,1759552248646,-2516.54,0.00024657,9]
[388973991,1759552248656,-500.0,0.00024657,9]
[388973992,1759552248666,-500.0,0.00024657,9]
[388973993,1759552248676,-500.0,0.00024657,9]
[388973994,1759552248686,-5436.53,0.00024657,9]
[388973995,1759552248696,-174.837654,0.00024657,7]
[388973996,1759552248705,-500.0,0.00024657,9]
[388973997,1759552248715,-500.0,0.00024657,9]
[388973998,1759552248726,-500.0,0.00024657,9]
[388973999,1759552248738,-500.0,0.00024657,9]
[388974000,1759552248750,-500.0,0.00024657,9]
[388974001,1759552248760,-500.0,0.00024657,9]
[388974002,1759552248769,-500.0,0.00024657,9]
[388974003,1759552248779,-500.0,0.00024657,9]
[388974004,1759552248788,-500.0,0.00024657,9]
[388974005,1759552248797,-500.0,0.00024657,9]
[388974006,1759552248807,-500.0,0.00024657,9]
[388974007,1759552248816,-500.0,0.00024657,9]
[388974008,1759552248826,-500.0,0.00024657,9]
[388974009,1759552248836,-500.0,0.00024657,9]
[388974010,1759552248845,-1223.53,0.00024657,9]
[388974011,1759552248854,-844.14,0.00024657,9]
[388974012,1759552248864,-482.23952354,0.00024657,9]
[388974013,1759552248873,-500.0,0.00024657,9]
[388974014,1759552248882,-1000.0,0.00024657,9]
[388974015,1759552248891,-500.0,0.00024657,9]
[388974016,1759552248901,-500.0,0.00024657,9]
[388974017,1759552248910,-8006.92,0.00024657,9]
[388974018,1759552248919,-500.0,0.00024657,9]
[388974019,1759552248929,-500.0,0.00024657,9]
[388974020,1759552248938,-500.0,0.00024657,9]
[388974021,1759552248948,-500.0,0.00024657,9]
[388974022,1759552248957,-1265.55,0.00024657,9]
[388974023,1759552248967,-500.0,0.00024657,9]
[388974024,1759552248978,-500.0,0.00024657,9]
[388974025,1759552248987,-500.0,0.00024657,9]
[388974026,1759552248996,-500.0,0.00024657,9]
[388974027,1759552249006,-500.0,0.00024657,9]
[388974028,1759552249019,-500.0,0.00024657,9]
[388974029,1759552249032,-500.0,0.00024657,9]
[388974030,1759552249042,-500.0,0.00024657,9]
[388974031,1759552249051,-249.65339868,0.00024657,9]
[388974032,1759552249061,-500.0,0.00024657,9]
[388974033,1759552249070,-1428.93,0.00024657,9]
[388974034,1759552249081,-500.0,0.00024657,9]
[388974035,1759552249090,-380.0,0.00024658,2]
[388974036,1759552249100,-151.0,0.00024658,7]
[388974037,1759552249110,-200.0,0.00024658,15]
[388974038,1759552249119,-200.0,0.00024658,2]
[388974039,1759552249128,-151.0,0.00024658,7]
[388974040,1759552249137,-151.0,0.00024658,7]
[388974041,1759552249146,-500.0,0.00024658,9]
[388974042,1759552249156,-151.0,0.00024658,9]
[388974043,1759552249165,-151.0,0.00024658,9]
[388974044,1759552249174,-151.0,0.00024658,9]
[388974045,1759552249184,-151.0,0.00024658,9]
[388974046,1759552249193,-151.0,0.00024658,9]
[388974047,1759552249202,-151.0,0.00024658,9]
[388974048,1759552249212,-151.0,0.00024658,9]
[388974049,1759552249221,-151.0,0.00024658,9]
[388974050,1759552249231,-151.0,0.00024658,9]
[388974051,1759552249240,-252.53076032,0.00024658,9]
[388974052,1759552249249,-151.0,0.00024658,9]
[388974053,1759552249258,-151.0,0.00024658,7]
[388974054,1759552249267,-151.0,0.00024658,7]
[388974055,1759552249276,-151.0,0.00024658,7]
[388974056,1759552249286,-151.0,0.00024658,7]
[388974057,1759552249302,-209.510792,0.00024658,7]
[388974058,1759552249317,-209.510792,0.00024658,7]
[388974059,1759552249331,-151.0,0.00024658,7]
[388974060,1759552249343,-209.510792,0.00024658,7]
[388974061,1759552249356,-151.0,0.00024658,7]
[388974062,1759552249370,-209.510792,0.00024658,7]
[388974063,1759552249383,-151.0,0.00024658,7]
[388974064,1759552249397,-151.0,0.00024658,7]
[388974065,1759552249410,-151.0,0.00024658,7]
[388974066,1759552249425,-506.135936,0.00024658,7]
[388974067,1759552249439,-506.135936,0.00024658,7]
[388974068,1759552249451,-506.135936,0.00024658,7]
[388974069,1759552249464,-506.135936,0.00024658,7]
[388974070,1759552249476,-151.0,0.00024658,7]
[388974071,1759552249489,-151.0,0.00024658,7]
[388974072,1759552249502,-151.02716197,0.00024658,9]
[388974073,1759552249514,-500.0,0.00024658,9]
[388974074,1759552249524,-151.0,0.00024658,9]
[388974075,1759552249537,-151.19396176,0.00024658,9]
[388974076,1759552249549,-151.0,0.00024658,9]
[388974077,1759552249562,-151.23000207,0.00024658,9]
[388974078,1759552249575,-151.0,0.00024658,9]
[388974079,1759552249590,-151.0,0.00024658,2]
[388974080,1759552249603,-151.0,0.00024658,9]
[388974081,1759552249617,-151.0,0.00024658,9]
[388974082,1759552249631,-151.0,0.00024658,9]
[388974083,1759552249641,-151.0,0.00024658,9]
[388974084,1759552249652,-500.0,0.00024658,9]
[388974085,1759552249666,-500.0,0.00024658,9]
[388974086,1759552249679,-151.0,0.00024658,9]
[388974087,1759552249691,-151.0,0.00024658,9]
[388974088,1759552249701,-151.0,0.00024658,9]
[388974089,1759552249713,-151.0,0.00024658,9]
[388974090,1759552249727,-151.0,0.00024658,9]
[388974091,1759552249737,-500.0,0.00024658,2]
[388974092,1759552249748,-151.0,0.00024659,7]
[388974093,1759552249759,-151.0,0.00024659,7]
[388974094,1759552249771,-151.0,0.00024659,7]
[388974095,1759552249784,-151.0,0.00024659,7]
[388974096,1759552249797,-151.0,0.00024659,7]
[388974097,1759552249809,-151.0,0.00024659,7]
[388974098,1759552249821,-151.0,0.00024659,7]
[388974099,1759552249833,-151.0,0.00024659,7]
[388974100,1759552249845,-151.0,0.00024659,7]
[388974101,1759552249857,-151.0,0.00024659,7]
[388974102,1759552249869,-500.45554994,0.00024673,2]
[388974103,1759552249880,-501.49259705,0.00024673,2]
[388974104,1759552249892,-500.0,0.00024673,2]
[388974105,1759552249904,-500.0,0.00024673,2]
[388974106,1759552249916,-176.32845848,0.00024673,2]
[388974107,1759552249928,-561.8854793,0.00024673,2]
[388974108,1759552249940,-341.46146146,0.00024673,2]
[388974109,1759552249952,-518.6804442,0.00024673,2]
[388974110,1759552249963,-500.0,0.00024673,2]
[388974111,1759552249975,-500.568848,0.00024673,2]
[388974112,1759552249986,-500.0,0.00024673,2]
[388974113,1759552249998,-500.0,0.00024673,2]
[388974114,1759552250009,-500.0,0.00024673,2]
[388974115,1759552250020,-500.0,0.00024673,2]
[388974116,1759552250031,-502.23076823,0.00024673,2]
[388974117,1759552250043,-501.52920836,0.00024673,2]
[388974118,1759552250054,-500.0,0.00024673,2]
[388974119,1759552250065,-500.0,0.00024673,2]
[388974120,1759552250075,-500.0,0.00024673,2]
[388974121,1759552250089,-518.35789514,0.00024673,2]
[388974122,1759552250102,-500.0,0.00024673,2]
[388974123,1759552250117,-502.11107488,0.00024673,2]
[388974124,1759552250128,-500.0,0.00024673,2]
[388974125,1759552250139,-271.90358409,0.00024673,2]
[388974126,1759552250151,-500.0,0.00024673,2]
[388974127,1759552250163,-500.51667312,0.00024673,2]
[388974128,1759552250175,-500.0,0.00024673,2]
[388974129,1759552250186,-500.0,0.00024673,2]
[388974130,1759552250199,-500.0,0.00024673,2]
[388974131,1759552250210,-502.65122307,0.00024673,2]
[388974132,1759552250222,-500.0,0.00024673,2]
[388974133,1759552250234,-500.0,0.00024673,2]
[388974134,1759552250246,-341.40647495,0.00024673,2]
[388974135,1759552250258,-438.05561126,0.00024673,2]
[388974136,1759552250269,-500.0,0.00024673,2]
[388974137,1759552250281,-151.0,0.00024673,7]
[388974138,1759552250292,-151.0,0.00024673,7]
[388974139,1759552250303,-151.0,0.00024673,7]
[388974140,1759552250314,-559.32700886,0.0002469,10]
[388974141,1759552250325,-151.0,0.000247,9]
[388974142,1759552250337,-151.0,0.000247,8]
[388974143,1759552250348,-151.0,0.000247,6]
[388974144,1759552250360,-8609.42,0.000247,2]
[388974145,1759552250371,-151.0,0.000247,9]
[388974146,1759552250382,-246.005085,0.000247,7]
[388974147,1759552250394,-151.0,0.000247,7]
[388974148,1759552250406,-151.0,0.000247,7]
[388974149,1759552250417,-342.14757,0.000247,7]
[388974150,1759552250428,-342.14757,0.000247,7]
[388974151,1759552250440,-342.14757,0.000247,7]
[388974152,1759552250452,-342.14757,0.000247,7]
[388974153,1759552250463,-16629.33682702,0.00024774,2]
[388974154,1759552250474,-151.0,0.000248,5]
[388974155,1759552250486,-151.0,0.000248,8]
[388974156,1759552250497,-151.0,0.000248,6]
[388974157,1759552250509,-151.0,0.000248,7]
[388974158,1759552250520,-151.0,0.000248,7]
[388974159,1759552250531,-234.93407,0.000248,7]
[388974160,1759552250543,-151.0,0.000248,7]
[388974161,1759552250554,-207.850496,0.000248,7]
[388974162,1759552250566,-152.166607,0.000248,7]
[388974163,1759552250578,-151.0,0.000248,7]
[388974164,1759552250590,-151.0,0.000248,7]
[388974165,1759552250601,-157.455924,0.000248,7]
[388974166,1759552250613,-157.455924,0.000248,7]
[388974167,1759552250626,-157.455924,0.000248,7]
[388974168,1759552250638,-157.455924,0.000248,7]
[388974169,1759552250649,-236.04532527,0.000248,2]
[388974170,1759552250662,-151.0,0.000248,7]
[388974171,1759552250675,-151.0,0.000248,7]
[388974172,1759552250686,-151.0,0.000248,7]
[388974173,1759552250697,-151.0,0.000248,7]
[388974174,1759552250708,-151.0,0.000248,7]
[388974175,1759552250719,-151.0,0.000248,7]
[388974176,1759552250731,-217.850368,0.000248,7]
[388974177,1759552250741,-151.0,0.000248,7]
[388974178,1759552250753,-151.0,0.000248,7]
[388974179,1759552250764,-151.0,0.000248,7]
[388974180,1759552250775,-151.0,0.000248,7]
[388974181,1759552250787,-151.0,0.000248,7]
[388974182,1759552250799,-151.0,0.000248,7]
[388974183,1759552250811,-151.0,0.000248,7]
[388974184,1759552250823,-151.0,0.000248,7]
[388974185,1759552250834,-151.0,0.000248,7]
[388974186,1759552250845,-151.0,0.000248,7]
[388974187,1759552250857,-151.0,0.000248,7]
[388974188,1759552250868,-246307.054756,0.000248,2]
[388974189,1759552250879,-1739.66480703,0.000248,4]
[388974190,1759552250890,-151.0,0.000248,7]
[388974191,1759552250901,-151.0,0.000248,7]
[388974192,1759552250914,-342.14757,0.000248,7]
[388974193,1759552250926,-342.14757,0.000248,7]
[388974194,1759552250938,-342.14757,0.000248,7]
[388974195,1759552250950,-342.14757,0.000248,7]
[388974196,1759552250961,-856.14097865,0.000248,2]
[388974197,1759552250972,-305.44631033,0.0002481,2]
[388974198,1759552250984,-500.0,0.00024831,5]
[388974199,1759552250994,-500.0,0.00024873,2]
[388974200,1759552251005,-500.0,0.00024873,2]
[388974201,1759552251016,-500.0,0.00024873,2]
[388974202,1759552251027,-500.0,0.00024873,2]
[388974203,1759552251039,-500.74300059,0.00024873,2]
[388974204,1759552251050,-500.0,0.00024873,2]
[388974205,1759552251061,-500.0,0.00024873,2]
[388974206,1759552251072,-500.0,0.00024873,2]
[388974207,1759552251084,-200.12305405,0.00024873,2]
[388974208,1759552251095,-500.0,0.00024873,2]
[388974209,1759552251106,-500.0,0.00024873,2]
[388974210,1759552251117,-500.68865712,0.00024873,2]
[388974211,1759552251128,-500.0,0.00024873,2]
[388974212,1759552251139,-500.0,0.00024873,2]
[388974213,1759552251150,-487.56700715,0.00024873,2]
[388974214,1759552251161,-197.4791147,0.00024873,2]
[388974215,1759552251171,-500.70106616,0.00024873,2]
[388974216,1759552251183,-150.49359446,0.00024873,2]
[388974217,1759552251194,-500.0,0.00024873,2]
[388974218,1759552251205,-500.0,0.00024873,2]
[388974219,1759552251216,-151.0,0.000249,9]
[388974220,1759552251226,-151.0,0.000249,7]
[388974221,1759552251237,-151.0,0.000249,7]
[388974222,1759552251247,-151.0,0.000249,7]
[388974223,1759552251256,-279.225096,0.000249,7]
[388974224,1759552251265,-153.024855,0.000249,7]
[388974225,1759552251275,-151.0,0.000249,7]
[388974226,1759552251286,-151.0,0.000249,7]
[388974227,1759552251500,-151.0,0.000249,7]
[388974228,1759552251607,-151.0,0.000249,7]
[388974229,1759552251624,-151.0,0.000249,7]
[388974230,1759552251634,-157.455924,0.000249,7]
[388974231,1759552251647,-157.455924,0.000249,7]
[388974232,1759552251656,-157.455924,0.000249,7]
[388974233,1759552251665,-157.455924,0.000249,7]
[388974234,1759552251674,-152.790687,0.000249,7]
[388974235,1759552251682,-151.0,0.000249,7]
[388974236,1759552251691,-151.0,0.000249,7]
[388974237,1759552251699,-151.0,0.000249,7]
[388974238,1759552251707,-151.0,0.000249,7]
[388974239,1759552251715,-151.0,0.000249,7]
[388974240,1759552251723,-151.0,0.000249,7]
[388974241,1759552251730,-152.227789,0.000249,7]
[388974242,1759552251739,-151.0,0.000249,7]
[388974243,1759552251748,-151.0,0.000249,7]
[388974244,1759552251757,-151.0,0.000249,7]
[388974245,1759552251767,-151.0,0.000249,7]
[388974246,1759552251776,-151.0,0.000249,7]
[388974247,1759552251785,-151.0,0.000249,7]
[388974248,1759552251794,-151.0,0.000249,7]
[388974249,1759552251803,-151.0,0.000249,7]
[388974250,1759552251812,-151.0,0.000249,7]
[388974251,1759552251821,-151.0,0.000249,7]
[388974252,1759552251830,-151.0,0.000249,7]
[388974253,1759552251839,-151.0,0.000249,7]
[388974254,1759552251848,-151.504711,0.000249,7]
[388974255,1759552251858,-151.0,0.000249,7]
[388974256,1759552251867,-151.0,0.000249,7]
[388974257,1759552251876,-151.0,0.000249,7]
[388974258,1759552251885,-151.0,0.000249,7]
[388974259,1759552251895,-209.510792,0.000249,7]
[388974260,1759552251905,-209.510792,0.000249,7]
[388974261,1759552251914,-151.0,0.000249,7]
[388974262,1759552251923,-209.510792,0.000249,7]
[388974263,1759552251933,-151.0,0.000249,7]
[388974264,1759552251942,-209.510792,0.000249,7]
[388974265,1759552251951,-151.0,0.000249,7]
[388974266,1759552251960,-151.0,0.000249,7]
[388974267,1759552251969,-152.56144,0.000249,7]
[388974268,1759552251978,-506.135936,0.000249,7]
[388974269,1759552251988,-506.135936,0.000249,7]
[388974270,1759552251997,-506.135936,0.000249,7]
[388974271,1759552252006,-506.135936,0.000249,7]
[388974272,1759552252015,-151.0,0.000249,7]
[388974273,1759552252024,-151.0,0.000249,7]
[388974274,1759552252033,-151.0,0.000249,7]
[388974275,1759552252043,-151.0,0.000249,7]
[388974276,1759552252052,-151.0,0.000249,7]
[388974277,1759552252061,-151.0,0.000249,7]
[388974278,1759552252071,-151.0,0.000249,7]
[388974279,1759552252086,-151.0,0.000249,7]
[388974280,1759552252095,-151.0,0.000249,7]
[388974281,1759552252105,-513675.197292,0.000249,2]
[388974282,1759552252114,-151.0,0.000249,7]
[388974283,1759552252126,-151.0,0.000249,7]
[388974284,1759552252135,-299.6446,0.000249,7]
[388974285,1759552252145,-151.0,0.000249,7]
[388974286,1759552252154,-151.0,0.000249,7]
[388974287,1759552252165,-151.0,0.000249,7]
[388974288,1759552252175,-151.0,0.000249,7]
[388974289,1759552252184,-151.0,0.000249,7]
[388974290,1759552252193,-151.0,0.000249,7]
[388974291,1759552252203,-151.0,0.000249,7]
[388974292,1759552252212,-151.0,0.000249,7]
[388974293,1759552252222,-342.14757,0.000249,7]
[388974294,1759552252231,-342.14757,0.000249,7]
[388974295,1759552252240,-342.14757,0.000249,7]
[388974296,1759552252250,-342.14757,0.000249,7]
[388974297,1759552252260,-443.67729943,0.00024931,9]
[388974298,1759552252269,-541.67,0.00024931,9]
[388974299,1759552252279,-500.0,0.00024931,9]
[388974300,1759552252288,-500.0,0.00024931,9]
[388974301,1759552252297,-400.5787892,0.00024931,9]
[388974302,1759552252307,-630.28631653,0.00024931,9]
[388974303,1759552252316,-614.2,0.00024931,9]
[388974304,1759552252326,-500.0,0.00024931,9]
[388974305,1759552252335,-500.0,0.00024931,9]
[388974306,1759552252344,-500.0,0.00024931,9]
[388974307,1759552252353,-500.0,0.00024931,9]
[388974308,1759552252362,-547.2,0.00024931,9]
[388974309,1759552252372,-500.0,0.00024931,9]
[388974310,1759552252381,-500.0,0.00024931,9]
[388974311,1759552252390,-500.0,0.00024931,9]
[388974312,1759552252399,-500.0,0.00024931,9]
[388974313,1759552252408,-500.0,0.00024931,9]
[388974314,1759552252418,-500.0,0.00024931,9]
[388974315,1759552252427,-506.37,0.00024931,9]
[388974316,1759552252438,-1324.56,0.00024931,9]
[388974317,1759552252447,-358.55159582,0.00024931,9]
[388974318,1759552252457,-500.0,0.00024931,9]
[388974319,1759552252466,-500.0,0.00024931,9]
[388974320,1759552252476,-288.88192159,0.00024931,9]
[388974321,1759552252485,-500.0,0.00024931,9]
[388974322,1759552252495,-500.0,0.00024931,9]
[388974323,1759552252506,-447.57185786,0.00024931,9]
[388974324,1759552252515,-500.0,0.00024931,9]
[388974325,1759552252525,-534.21,0.00024931,9]
[388974326,1759552252534,-500.0,0.00024931,9]
[388974327,1759552252544,-500.0,0.00024931,9]
[388974328,1759552252554,-359.27437895,0.00024931,9]
[388974329,1759552252563,-500.0,0.00024931,9]
[388974330,1759552252573,-322.18152945,0.00024931,9]
[388974331,1759552252582,-500.0,0.00024931,9]
[388974332,1759552252592,-465.81052306,0.00024931,9]
[388974333,1759552252601,-500.0,0.00024931,9]
[388974334,1759552252611,-7100.5688379,0.00024931,2]
[388974335,1759552252622,-500.0,0.00024931,9]
[388974336,1759552252634,-500.0,0.00024931,9]
[388974337,1759552252644,-500.0,0.00024931,9]
[388974338,1759552252654,-500.0,0.00024931,9]
[388974339,1759552252663,-500.0,0.00024931,9]
[388974340,1759552252673,-835.57,0.00024931,9]
[388974341,1759552252683,-500.0,0.00024931,9]
[388974342,1759552252693,-500.0,0.00024931,7]
[388974343,1759552252702,-500.0,0.00024931,9]
[388974344,1759552252711,-473.61221983,0.00024931,9]
[388974345,1759552252721,-500.0,0.00024931,9]
[388974346,1759552252730,-500.0,0.00024931,9]
[388974347,1759552252739,-500.0,0.00024931,9]
[388974348,1759552252749,-500.0,0.00024931,9]
[388974349,1759552252758,-500.0,0.00024931,9]
[388974350,1759552252768,-10958.0,0.00024931,9]
[388974351,1759552252779,-500.0,0.00024931,9]
[388974352,1759552252789,-435.7116071,0.00024931,9]
[388974353,1759552252798,-505.11718668,0.00024931,9]
[388974354,1759552252807,-665.59,0.00024931,9]
[388974355,1759552252817,-500.0,0.00024931,9]
[388974356,1759552252826,-151.0,0.00024931,7]
[388974357,1759552252836,-151.0,0.00024931,7]
[388974358,1759552252845,-500.0,0.00024931,9]
[388974359,1759552252855,-151.0,0.00024931,7]
[388974360,1759552252865,-500.0,0.00024931,9]
[388974361,1759552252874,-784.22,0.00024931,9]
[388974362,1759552252884,-500.0,0.00024931,9]
[388974363,1759552252894,-500.0,0.00024931,9]
[388974364,1759552252903,-500.0,0.00024931,9]
[388974365,1759552252912,-500.0,0.00024931,9]
[388974366,1759552252922,-500.0,0.00024931,9]
[388974367,1759552252932,-500.0,0.00024931,9]
[388974368,1759552252943,-474.63134413,0.00024931,9]
[388974369,1759552252952,-500.0,0.00024931,9]
[388974370,1759552252961,-1605.64,0.00024931,9]
[388974371,1759552252971,-1064.74,0.00024931,9]
[388974372,1759552252982,-26017.2979059,0.00024931,2]
[388974373,1759552253000,-500.0,0.00024931,9]
[388974374,1759552253009,-500.0,0.00024931,9]
[388974375,1759552253019,-500.0,0.00024931,9]
[388974376,1759552253029,-500.0,0.00024931,9]
[388974377,1759552253038,-467.88326351,0.00024931,9]
[388974378,1759552253048,-467.31736296,0.00024931,9]
[388974379,1759552253057,-6754.91,0.00024931,9]
[388974380,1759552253067,-500.0,0.00024931,9]
[388974381,1759552253077,-500.0,0.00024931,9]
[388974382,1759552253086,-500.0,0.00024931,9]
[388974383,1759552253096,-500.0,0.00024931,9]
[388974384,1759552253105,-500.0,0.00024931,9]
[388974385,1759552253115,-500.0,0.00024931,9]
[388974386,1759552253124,-500.0,0.00024931,9]
[388974387,1759552253134,-500.0,0.00024931,9]
[388974388,1759552253143,-500.0,0.00024931,9]
[388974389,1759552253153,-500.0,0.00024931,9]
[388974390,1759552253163,-500.0,0.00024931,9]
[388974391,1759552253172,-500.0,0.00024931,9]
[388974392,1759552253182,-500.0,0.00024931,9]
[388974393,1759552253191,-744.02,0.00024931,9]
[388974394,1759552253200,-500.0,0.00024931,9]
[388974395,1759552253209,-462.43779933,0.00024931,9]
[388974396,1759552253218,-1696.76,0.00024931,9]
[388974397,1759552253228,-493.29142968,0.00024931,9]
[388974398,1759552253238,-500.0,0.00024931,9]
[388974399,1759552253247,-500.0,0.00024931,9]
[388974400,1759552253256,-500.0,0.00024931,9]
[388974401,1759552253266,-500.0,0.00024931,9]
[388974402,1759552253275,-711.43,0.00024931,9]
[388974403,1759552253285,-500.0,0.00024931,9]
[388974404,1759552253295,-500.0,0.00024931,9]
[388974405,1759552253305,-500.0,0.00024931,9]
[388974406,1759552253315,-500.0,0.00024931,9]
[388974407,1759552253325,-500.0,0.00024931,9]
[388974408,1759552253335,-500.0,0.00024931,9]
[388974409,1759552253344,-596.87,0.00024931,9]
[388974410,1759552253354,-500.0,0.00024931,9]
[388974411,1759552253363,-262.48,0.00024931,9]
[388974412,1759552253374,-500.0,0.00024931,9]
[388974413,1759552253383,-851.28,0.00024931,9]
[388974414,1759552253393,-500.0,0.00024931,9]
[388974415,1759552253402,-775.34,0.00024931,9]
[388974416,1759552253412,-500.0,0.00024931,9]
[388974417,1759552253421,-500.0,0.00024931,9]
[388974418,1759552253430,-500.0,0.00024931,9]
[388974419,1759552253439,-500.0,0.00024931,9]
[388974420,1759552253450,-500.0,0.00024931,9]
[388974421,1759552253459,-521.33085702,0.00024931,3]
[388974422,1759552253469,-500.0,0.00024931,9]
[388974423,1759552253478,-500.0,0.00024931,9]
[388974424,1759552253487,-500.0,0.00024931,9]
[388974425,1759552253496,-500.0,0.00024931,9]
[388974426,1759552253506,-1119.79,0.00024931,9]
[388974427,1759552253515,-500.0,0.00024931,9]
[388974428,1759552253524,-3525.1285925,0.00024931,2]
[388974429,1759552253535,-500.0,0.00024931,9]
[388974430,1759552253544,-553.09,0.00024931,9]
[388974431,1759552253553,-735.43,0.00024931,9]